bitfinex-derivatives/quotes_BNBF0:USTF0_20241225
["timestamp","ask_amount","ask_price","bid_price","bid_amount"]
[1735090744213,0.54949783,699.01,696.96,0.28696051]
[1735090744415,0.2633789,699.0,696.96,0.28696051]
[1735090745013,0.28611893,699.01,696.96,0.28696051]
[1735090745014,0.2633789,698.99,696.96,0.28696051]
[1735090745214,0.2633789,698.98,696.96,0.28696051]
[1735090745412,0.28611893,699.01,696.96,0.28696051]
[1735090745413,0.2633789,698.97,696.96,0.28696051]
[1735090745607,0.2633789,698.96,696.96,0.28696051]
[1735090745811,0.28611893,699.01,696.96,0.28696051]
[1735090746111,0.26337253,699.0,696.96,0.28696051]
[1735090746308,0.26337253,698.99,696.96,0.28696051]
[1735090746508,0.26337253,698.98,696.96,0.28696051]
[1735090746712,0.26337222,698.97,696.96,0.28696051]
[1735090746914,0.26337222,698.96,696.96,0.28696051]
[1735090747216,0.26337222,698.95,696.96,0.28696051]
[1735090747415,0.26337222,698.94,696.96,0.28696051]
[1735090747615,0.26337222,698.93,696.96,0.28696051]
[1735090747815,0.26337222,698.92,696.96,0.28696051]
[1735090748014,0.26337222,698.91,696.96,0.28696051]
[1735090748209,0.26337222,698.9,696.96,0.28696051]
[1735090748410,0.26337222,698.89,696.96,0.28696051]
[1735090748610,0.28611893,699.01,696.96,0.28696051]
[1735090748611,0.26337222,698.88,696.96,0.28696051]
[1735090748810,0.26337222,698.87,696.96,0.28696051]
[1735090749009,0.26337222,698.86,696.96,0.28696051]
[1735090749210,0.26337222,698.85,696.96,0.28696051]
[1735090749414,0.26337222,698.84,696.96,0.28696051]
[1735090749615,0.26337222,698.83,696.96,0.28696051]
[1735090749816,0.26337222,698.82,696.96,0.28696051]
[1735090750015,0.28611893,699.01,696.96,0.28696051]
[1735090750016,0.26337222,698.81,696.96,0.28696051]
[1735090750217,0.28611893,699.01,696.96,0.28696051]
[1735090750218,0.26337222,698.8,696.96,0.28696051]
[1735090750416,0.26337222,698.79,696.96,0.28696051]
[1735090750617,0.26337222,698.78,696.96,0.28696051]
[1735090750813,0.26337222,698.77,696.96,0.28696051]
[1735090751011,0.28611893,699.01,696.96,0.28696051]
[1735090751012,0.26337222,698.76,696.96,0.28696051]
[1735090751315,0.26337222,698.75,696.96,0.28696051]
[1735090751510,0.2633804,698.74,696.96,0.28696051]
[1735090751715,0.2633804,698.73,696.96,0.28696051]
[1735090752017,0.2633804,698.72,696.96,0.28696051]
[1735090752217,0.2633804,698.71,696.96,0.28696051]
[1735090752418,0.2633804,698.7,696.96,0.28696051]
[1735090752719,0.2633804,698.69,696.96,0.28696051]
[1735090752917,0.2633804,698.68,696.96,0.28696051]
[1735090753112,0.2633804,698.67,696.96,0.28696051]
[1735090753317,1.07064417,698.93,696.96,0.28696051]
[1735090753921,0.26334223,698.92,696.96,0.28696051]
[1735090754618,0.26334223,698.91,696.96,0.28696051]
[1735090754815,0.26334223,698.9,696.96,0.28696051]
[1735090755014,0.26334223,698.89,696.96,0.28696051]
[1735090755219,0.26334223,698.88,696.96,0.28696051]
[1735090755520,0.26334223,698.87,696.96,0.28696051]
[1735090755718,0.26334223,698.86,696.96,0.28696051]
[1735090755918,0.26334223,698.85,696.96,0.28696051]
[1735090756118,0.28611893,699.01,696.96,0.28696051]
[1735090756119,0.26334223,698.84,696.96,0.28696051]
[1735090756320,0.26334223,698.83,696.96,0.28696051]
[1735090756516,0.26334223,698.82,696.96,0.28696051]
[1735090756820,0.26334223,698.81,696.96,0.28696051]
[1735090757022,0.26334223,698.8,696.96,0.28696051]
[1735090757215,0.26334223,698.79,696.96,0.28696051]
[1735090757421,0.26334223,698.78,696.96,0.28696051]
[1735090757616,0.26334223,698.77,696.96,0.28696051]
[1735090757821,0.26334223,698.76,696.96,0.28696051]
[1735090758022,0.26334223,698.75,696.96,0.28696051]
[1735090758222,0.26334223,698.74,696.96,0.28696051]
[1735090758523,0.26334223,698.73,696.96,0.28696051]
[1735090758721,0.26334223,698.72,696.96,0.28696051]
[1735090758919,0.26334223,698.71,696.96,0.28696051]
[1735090759117,0.28611893,699.01,696.96,0.28696051]
[1735090759317,0.26333302,699.0,696.96,0.28696051]
[1735090762525,0.26332665,698.99,696.96,0.28696051]
[1735090762730,0.26332665,698.98,696.96,0.28696051]
[1735090762933,0.26332665,698.97,696.96,0.28696051]
[1735090763125,0.28611893,699.01,696.96,0.28696051]
[1735090763327,0.26332367,699.0,696.96,0.28696051]
[1735090765931,0.26332367,699.0,696.98,1.07095492]
[1735090766133,0.26332367,699.0,697.08,0.28691111]
[1735090766429,0.28611893,699.01,697.08,0.28691111]
[1735090768931,0.26338628,699.0,697.08,0.28691111]
[1735090770733,0.28612712,698.99,697.08,0.28691111]
[1735090770937,1.07064417,698.95,697.08,0.28691111]
[1735090771137,0.54953387,698.94,697.08,0.28691111]
[1735090771438,0.54953796,698.93,697.08,0.28691111]
[1735090771637,0.26338628,698.92,697.08,0.28691111]
[1735090775941,0.28615987,698.91,697.08,0.28691111]
[1735090776137,0.26338628,698.9,697.08,0.28691111]
[1735090776343,0.26341125,698.9,697.08,0.28691111]
[1735090779937,0.26338243,698.89,697.08,0.28691111]
[1735090780142,0.26338243,698.88,697.08,0.28691111]
[1735090780436,0.26338243,698.87,697.08,0.28691111]
[1735090780640,0.26338243,698.86,697.08,0.28691111]
[1735090780940,0.28615987,698.91,697.08,0.28691111]
[1735090780941,0.26338243,698.85,697.08,0.28691111]
[1735090781141,0.26338243,698.84,697.08,0.28691111]
[1735090781335,0.26338243,698.83,697.08,0.28691111]
[1735090781538,0.26338243,698.82,697.08,0.28691111]
[1735090781841,0.26338309,698.81,697.08,0.28691111]
[1735090782041,0.26338309,698.8,697.08,0.28691111]
[1735090782241,0.26338309,698.79,697.08,0.28691111]
[1735090782442,0.26338309,698.78,697.08,0.28691111]
[1735090782643,0.26338309,698.77,697.08,0.28691111]
[1735090782842,0.26338309,698.76,697.08,0.28691111]
[1735090783042,0.26338309,698.75,697.08,0.28691111]
[1735090783242,0.26338309,698.74,697.08,0.28691111]
[1735090783444,0.26338309,698.73,697.08,0.28691111]
[1735090783642,0.26338309,698.72,697.08,0.28691111]
[1735090783844,0.26338309,698.71,697.08,0.28691111]
[1735090784047,0.26338309,698.7,697.08,0.28691111]
[1735090784347,0.26338309,698.69,697.08,0.28691111]
[1735090784646,0.26340944,698.68,697.08,0.28691111]
[1735090784846,0.26340944,698.67,697.08,0.28691111]
[1735090785047,0.26340944,698.66,697.08,0.28691111]
[1735090785246,0.26340944,698.65,697.08,0.28691111]
[1735090785549,0.26340944,698.64,697.08,0.28691111]
[1735090785741,0.26340944,698.63,697.08,0.28691111]
[1735090785940,0.26340944,698.62,697.08,0.28691111]
[1735090786145,0.26340944,698.61,697.08,0.28691111]
[1735090786346,0.26340944,698.6,697.08,0.28691111]
[1735090786548,0.26340944,698.59,697.08,0.28691111]
[1735090786751,0.26340944,698.58,697.08,0.28691111]
[1735090786944,0.26340944,698.57,697.08,0.28691111]
[1735090787143,0.26340944,698.56,697.08,0.28691111]
[1735090787449,0.26341382,698.55,697.08,0.28691111]
[1735090787641,0.26341382,698.54,697.08,0.28691111]
[1735090787844,0.26341382,698.53,697.08,0.28691111]
[1735090788043,0.26340656,698.52,697.08,0.28691111]
[1735090788346,0.26340656,698.51,697.08,0.28691111]
[1735090788543,0.26340656,698.5,697.08,0.28691111]
[1735090788744,1.07078627,698.86,697.08,0.28691111]
[1735090788944,0.54959769,698.85,697.08,0.28691111]
[1735090789145,0.26341325,698.84,697.08,0.28691111]
[1735090789751,1.07078627,698.83,697.08,0.28691111]
[1735090789953,0.26341325,698.82,697.08,0.28691111]
[1735090790150,0.26339901,698.81,697.08,0.28691111]
[1735090790343,0.26339901,698.8,697.08,0.28691111]
[1735090790544,0.26339016,698.79,697.08,0.28691111]
[1735090790748,0.26339016,698.78,697.08,0.28691111]
[1735090790944,0.26339016,698.77,697.08,0.28691111]
[1735090791148,0.26339016,698.76,697.08,0.28691111]
[1735090791349,0.26339016,698.75,697.08,0.28691111]
[1735090791550,0.26339016,698.74,697.08,0.28691111]
[1735090791745,0.26339016,698.73,697.08,0.28691111]
[1735090791946,0.26339016,698.72,697.08,0.28691111]
[1735090792146,0.26339016,698.71,697.08,0.28691111]
[1735090792347,0.26339016,698.7,697.08,0.28691111]
[1735090792655,0.26339016,698.69,697.08,0.28691111]
[1735090792954,0.26337228,698.68,697.08,0.28691111]
[1735090793154,0.26337228,698.67,697.08,0.28691111]
[1735090793352,0.26337228,698.66,697.08,0.28691111]
[1735090793553,0.26337228,698.65,697.08,0.28691111]
[1735090793854,0.26336451,698.64,697.08,0.28691111]
[1735090794047,0.26337352,698.63,697.08,0.28691111]
[1735090794248,0.28618444,698.85,697.08,0.28691111]
[1735090794449,0.26337363,698.84,697.08,0.28691111]
[1735090796454,0.26337744,698.83,697.08,0.28691111]
[1735090796653,0.26337744,698.82,697.08,0.28691111]
[1735090796853,0.26337744,698.81,697.08,0.28691111]
[1735090797054,0.26337744,698.84,697.08,0.28691111]
[1735090797254,0.28618444,698.85,697.08,0.28691111]
[1735090797255,0.26337744,698.83,697.08,0.28691111]
[1735090797450,0.26337744,698.82,697.08,0.28691111]
[1735090797657,0.26337744,698.81,697.08,0.28691111]
[1735090797860,0.26337744,698.8,697.08,0.28691111]
[1735090798055,0.26337744,698.79,697.08,0.28691111]
[1735090798255,0.26337744,698.78,697.08,0.28691111]
[1735090798457,0.26337744,698.77,697.08,0.28691111]
[1735090798658,0.26337744,698.76,697.08,0.28691111]
[1735090798957,1.07078627,698.81,697.08,0.28691111]
[1735090799258,0.26335474,698.8,697.08,0.28691111]
[1735090799458,0.26335474,698.79,697.08,0.28691111]
[1735090799656,0.26335474,698.78,697.08,0.28691111]
[1735090799953,0.26335474,698.77,697.08,0.28691111]
[1735090800156,0.26335474,698.76,697.08,0.28691111]
[1735090800352,0.26335474,698.75,697.08,0.28691111]
[1735090800553,0.26335474,698.74,697.08,0.28691111]
[1735090800754,0.28618444,698.85,697.08,0.28691111]
[1735090800755,0.26335474,698.73,697.08,0.28691111]
[1735090800956,0.28618444,698.85,697.08,0.28691111]
[1735090801160,0.26336933,698.84,697.08,0.28691111]
[1735090803159,0.28618444,698.85,697.08,0.28691111]
[1735090803352,0.26338214,698.84,697.08,0.28691111]
[1735090804160,0.263398,698.83,697.08,0.28691111]
[1735090804354,0.263398,698.82,697.08,0.28691111]
[1735090804560,0.263398,698.81,697.08,0.28691111]
[1735090804754,0.28618444,698.85,697.08,0.28691111]
[1735090804755,0.263398,698.8,697.08,0.28691111]
[1735090804955,0.263398,698.79,697.08,0.28691111]
[1735090805161,0.263398,698.78,697.08,0.28691111]
[1735090805355,0.263398,698.77,697.08,0.28691111]
[1735090805659,0.28618444,698.85,697.08,0.28691111]
[1735090805660,0.263398,698.76,697.08,0.28691111]
[1735090805861,0.263398,698.75,697.08,0.28691111]
[1735090806160,0.26342268,698.74,697.08,0.28691111]
[1735090806360,0.26342268,698.73,697.08,0.28691111]
[1735090806561,0.26342268,698.72,697.08,0.28691111]
[1735090806861,0.26342268,698.71,697.08,0.28691111]
[1735090807061,0.26342268,698.7,697.08,0.28691111]
[1735090807262,0.26342268,698.69,697.08,0.28691111]
[1735090807459,0.26342268,698.68,697.08,0.28691111]
[1735090807660,0.26342268,698.67,697.08,0.28691111]
[1735090807859,0.26342268,698.66,697.08,0.28691111]
[1735090808060,0.26342268,698.65,697.08,0.28691111]
[1735090808256,0.26342268,698.64,697.08,0.28691111]
[1735090808456,0.26342268,698.63,697.08,0.28691111]
[1735090808761,0.28618444,698.85,697.08,0.28691111]
[1735090808961,0.26339915,698.84,697.08,0.28691111]
[1735090811564,0.26341414,698.83,697.08,0.28691111]
[1735090811866,0.26341414,698.82,697.08,0.28691111]
[1735090812061,0.26341414,698.81,697.08,0.28691111]
[1735090812262,0.26339794,698.8,697.08,0.28691111]
[1735090812563,0.26339794,698.79,697.08,0.28691111]
[1735090812764,0.26339794,698.78,697.08,0.28691111]
[1735090812965,0.26339794,698.77,697.08,0.28691111]
[1735090813165,0.26339794,698.76,697.08,0.28691111]
[1735090813366,0.26339794,698.75,697.08,0.28691111]
[1735090813560,0.26339794,698.74,697.08,0.28691111]
[1735090813763,0.26339794,698.73,697.08,0.28691111]
[1735090813960,0.26339794,698.72,697.08,0.28691111]
[1735090814164,0.28618444,698.85,697.08,0.28691111]
[1735090814360,0.26336616,698.84,697.08,0.28691111]
[1735090819690,0.26340891,698.83,697.08,0.28691111]
[1735090819892,0.26340891,698.82,697.08,0.28691111]
[1735090820095,0.26340891,698.81,697.08,0.28691111]
[1735090820387,0.26340412,698.8,697.08,0.28691111]
[1735090820591,0.26340412,698.79,697.08,0.28691111]
[1735090820779,0.26340412,698.78,697.08,0.28691111]
[1735090820984,0.26340412,698.77,697.08,0.28691111]
[1735090821181,0.26340412,698.76,697.08,0.28691111]
[1735090821379,0.26340412,698.75,697.08,0.28691111]
[1735090821584,0.26340412,698.74,697.08,0.28691111]
[1735090821887,0.26340412,698.73,697.08,0.28691111]
[1735090822084,0.26340412,698.72,697.08,0.28691111]
[1735090822288,0.26340412,698.71,697.08,0.28691111]
[1735090822484,0.26340959,698.7,697.08,0.28691111]
[1735090822689,0.26340959,698.69,697.08,0.28691111]
[1735090822886,0.26340959,698.68,697.08,0.28691111]
[1735090823088,0.26340959,698.67,697.08,0.28691111]
[1735090823282,0.26340959,698.66,697.08,0.28691111]
[1735090823488,0.26340959,698.65,697.08,0.28691111]
[1735090823685,0.26340959,698.64,697.08,0.28691111]
[1735090823878,0.28618444,698.85,697.08,0.28691111]
[1735090824071,0.2634025,698.84,697.08,0.28691111]
[1735090825174,0.26337142,698.83,697.08,0.28691111]
[1735090825473,0.28618444,698.85,697.08,0.28691111]
[1735090825474,0.26337142,698.82,697.08,0.28691111]
[1735090825774,0.26337142,698.81,697.08,0.28691111]
[1735090825974,0.26337142,698.8,697.08,0.28691111]
[1735090826273,0.26337142,698.79,697.08,0.28691111]
[1735090826471,0.26337142,698.78,697.08,0.28691111]
[1735090826675,0.26337142,698.77,697.08,0.28691111]
[1735090826877,0.26337142,698.76,697.08,0.28691111]
[1735090827077,0.26337142,698.75,697.08,0.28691111]
[1735090827274,0.26337142,698.74,697.08,0.28691111]
[1735090827475,0.26337142,698.73,697.08,0.28691111]
[1735090827675,0.26337142,698.72,697.08,0.28691111]
[1735090827873,0.28618444,698.85,697.08,0.28691111]
[1735090828176,0.26339872,698.84,697.08,0.28691111]
[1735090828774,0.26338182,698.83,697.08,0.28691111]
[1735090828970,0.26338182,698.82,697.08,0.28691111]
[1735090829174,0.26338182,698.81,697.08,0.28691111]
[1735090829380,0.26338182,698.8,697.08,0.28691111]
[1735090829580,0.26338182,698.79,697.08,0.28691111]
[1735090829775,0.26338182,698.78,697.08,0.28691111]
[1735090829978,0.26338182,698.77,697.08,0.28691111]
[1735090830177,0.26338182,698.76,697.08,0.28691111]
[1735090830377,0.26338182,698.75,697.08,0.28691111]
[1735090830579,0.28618444,698.85,697.08,0.28691111]
[1735090830580,0.26338182,698.74,697.08,0.28691111]
[1735090830778,0.26340319,698.73,697.08,0.28691111]
[1735090831082,0.26340319,698.72,697.08,0.28691111]
[1735090831278,0.26340354,698.71,697.08,0.28691111]
[1735090831479,0.28618444,698.85,697.08,0.28691111]
[1735090831480,0.26340354,698.7,697.08,0.28691111]
[1735090831678,0.26340354,698.69,697.08,0.28691111]
[1735090831975,0.26340354,698.68,697.08,0.28691111]
[1735090832176,0.26340354,698.67,697.08,0.28691111]
[1735090832380,0.26340354,698.66,697.08,0.28691111]
[1735090832583,0.26340354,698.65,697.08,0.28691111]
[1735090832786,0.28618444,698.85,697.08,0.28691111]
[1735090832982,0.2634084,698.84,697.08,0.28691111]
[1735090833387,0.26340644,698.83,697.08,0.28691111]
[1735090833583,0.28618444,698.85,697.08,0.28691111]
[1735090833584,0.26340644,698.82,697.08,0.28691111]
[1735090833783,0.26340644,698.81,697.08,0.28691111]
[1735090833985,0.26340644,698.8,697.08,0.28691111]
[1735090834188,0.26340644,698.79,697.08,0.28691111]
[1735090834383,0.26340644,698.78,697.08,0.28691111]
[1735090834584,0.26340644,698.77,697.08,0.28691111]
[1735090834790,0.26340644,698.76,697.08,0.28691111]
[1735090834984,0.26340644,698.75,697.08,0.28691111]
[1735090835183,0.26340644,698.74,697.08,0.28691111]
[1735090835387,0.26340644,698.73,697.08,0.28691111]
[1735090835589,0.26340644,698.72,697.08,0.28691111]
[1735090835784,0.28618444,698.85,697.08,0.28691111]
[1735090835785,0.26340644,698.71,697.08,0.28691111]
[1735090836087,0.28618444,698.85,697.08,0.28691111]
[1735090836290,0.2634422,698.84,697.08,0.28691111]
[1735090836482,0.28619263,698.83,697.08,0.28691111]
[1735090836686,0.2634422,698.82,697.08,0.28691111]
[1735090836884,0.28620082,698.81,697.08,0.28691111]
[1735090837090,0.26343942,698.8,697.08,0.28691111]
[1735090837286,0.28620901,698.79,697.08,0.28691111]
[1735090837586,0.26343942,698.78,697.08,0.28691111]
[1735090841293,1.07078627,698.77,697.08,0.28691111]
[1735090841500,0.26343942,698.76,697.08,0.28691111]
[1735090842396,0.28620901,698.79,697.08,0.28691111]
[1735090842595,0.26349767,698.78,697.08,0.28691111]
[1735090842902,1.07001682,698.55,697.08,0.28691111]
[1735090843198,0.26349767,698.54,697.08,0.28691111]
[1735090843393,0.26351238,698.53,697.08,0.28691111]
[1735090843599,0.26351238,698.52,697.08,0.28691111]
[1735090843797,0.26351238,698.51,697.08,0.28691111]
[1735090843999,0.26351238,698.5,697.08,0.28691111]
[1735090844200,0.26351238,698.49,697.08,0.28691111]
[1735090844400,1.06902487,698.55,697.08,0.28691111]
[1735090844599,0.2635091,698.54,697.08,0.28691111]
[1735090845899,0.2635091,698.53,697.08,0.28691111]
[1735090846105,0.2635091,698.52,697.08,0.28691111]
[1735090846307,0.2635091,698.51,697.08,0.28691111]
[1735090847407,0.26351796,698.5,697.08,0.28691111]
[1735090847603,0.26351796,698.49,697.08,0.28691111]
[1735090847805,0.26351796,698.48,697.08,0.28691111]
[1735090848007,0.26351796,698.47,697.08,0.28691111]
[1735090848301,0.26351796,698.46,697.08,0.28691111]
[1735090848503,0.28620901,698.79,697.08,0.28691111]
[1735090848504,0.26351796,698.45,697.08,0.28691111]
[1735090848701,0.26351796,698.44,697.08,0.28691111]
[1735090848906,0.26351796,698.43,697.08,0.28691111]
[1735090849107,0.26351796,698.42,697.08,0.28691111]
[1735090849306,0.26351796,698.41,697.08,0.28691111]
[1735090849506,0.28620901,698.79,697.08,0.28691111]
[1735090849507,0.26351796,698.4,697.08,0.28691111]
[1735090849708,0.26351796,698.39,697.08,0.28691111]
[1735090849902,0.26351796,698.38,697.08,0.28691111]
[1735090850100,0.26352203,698.37,697.08,0.28691111]
[1735090850306,0.26352203,698.36,697.08,0.28691111]
[1735090850506,0.26352203,698.35,697.08,0.28691111]
[1735090850707,0.26352203,698.34,697.08,0.28691111]
[1735090850907,0.26352203,698.33,697.08,0.28691111]
[1735090851108,1.06902487,698.59,697.08,0.28691111]
[1735090851109,0.26352203,698.32,697.08,0.28691111]
[1735090851307,0.26352203,698.31,697.08,0.28691111]
[1735090851504,0.26352203,698.3,697.08,0.28691111]
[1735090851703,0.26352203,698.29,697.08,0.28691111]
[1735090851902,0.26352203,698.28,697.08,0.28691111]
[1735090852105,0.26352203,698.27,697.08,0.28691111]
[1735090852303,1.06902487,698.59,697.08,0.28691111]
[1735090852510,0.54981792,698.58,697.08,0.28691111]
[1735090852707,0.54982202,698.57,697.08,0.28691111]
[1735090852908,0.54982612,698.56,697.08,0.28691111]
[1735090853205,0.54983022,698.55,697.08,0.28691111]
[1735090853411,0.54983431,698.54,697.08,0.28691111]
[1735090853611,0.26352355,698.53,697.08,0.28691111]
[1735090858410,0.28631144,698.54,697.08,0.28691111]
[1735090858607,0.26353889,698.53,697.08,0.28691111]
[1735090859512,0.28631964,698.52,697.08,0.28691111]
[1735090859712,0.26353889,698.51,697.08,0.28691111]
[1735090860312,0.28632784,698.5,697.08,0.28691111]
[1735090860508,0.26353889,698.49,697.08,0.28691111]
[1735090860914,0.5498883,698.48,697.08,0.28691111]
[1735090861108,0.26355226,698.47,697.08,0.28691111]
[1735090861715,0.26356444,698.46,697.08,0.28691111]
[1735090861915,0.26356444,698.45,697.08,0.28691111]
[1735090862111,0.26356444,698.44,697.08,0.28691111]
[1735090862315,0.26356444,698.43,697.08,0.28691111]
[1735090862516,0.28633604,698.48,697.08,0.28691111]
[1735090862517,0.26356444,698.42,697.08,0.28691111]
[1735090862715,0.26356444,698.41,697.08,0.28691111]
[1735090863013,0.28636884,698.4,697.08,0.28691111]
[1735090863414,0.26357449,698.39,697.08,0.28691111]
[1735090863818,0.28637704,698.38,697.08,0.28691111]
[1735090864019,0.26357449,698.37,697.08,0.28691111]
[1735090864710,0.28638524,698.36,697.08,0.28691111]
[1735090864916,0.26357449,698.35,697.08,0.28691111]
[1735090865319,0.28639344,698.34,697.08,0.28691111]
[1735090865514,0.26357449,698.33,697.08,0.28691111]
[1735090865716,0.28640164,698.32,697.08,0.28691111]
[1735090865917,0.26357449,698.31,697.08,0.28691111]
[1735090866317,0.28640985,698.3,697.08,0.28691111]
[1735090866517,0.26357449,698.29,697.08,0.28691111]
[1735090866722,0.28641805,698.28,697.08,0.28691111]
[1735090866916,0.26357449,698.27,697.08,0.28691111]
[1735090867316,0.28642625,698.26,697.08,0.28691111]
[1735090867521,0.26357449,698.25,697.08,0.28691111]
[1735090868724,0.26361088,698.24,697.08,0.28691111]
[1735090869019,0.26361088,698.23,697.08,0.28691111]
[1735090869221,0.26361088,698.22,697.08,0.28691111]
[1735090869421,0.26361088,698.21,697.08,0.28691111]
[1735090869621,0.28642625,698.26,695.82,1.0714771]
[1735090869622,0.26363157,698.25,695.82,1.0714771]
[1735090869823,0.28642625,698.26,695.94,0.28738109]
[1735090869824,0.26363157,698.24,695.94,0.28738109]
[1735090870022,0.26363157,698.23,695.94,0.28738109]
[1735090870216,0.26363157,698.22,695.94,0.28738109]
[1735090870416,0.26363157,698.21,695.94,0.28738109]
[1735090870620,0.26363157,698.2,695.94,0.28738109]
[1735090870825,0.26363157,698.19,695.94,0.28738109]
[1735090871025,0.26363157,698.18,695.94,0.28738109]
[1735090871225,0.26363157,698.17,695.94,0.28738109]
[1735090871425,0.28642625,698.26,695.94,0.28738109]
[1735090871626,0.26363662,698.25,695.94,0.28738109]
[1735090873323,0.26363662,698.25,695.94,1.35885819]
[1735090874126,0.28642625,698.26,695.94,1.35885819]
[1735090874326,0.28642625,698.26,695.94,0.28738109]
[1735090874327,0.26362,698.25,695.94,0.28738109]
[1735090875231,0.26362,698.25,695.95,1.0714771]
[1735090875431,0.26362,698.25,696.06,0.28733155]
[1735090876826,0.28642625,698.26,696.06,0.28733155]
[1735090877030,0.26360713,698.25,696.06,0.28733155]
[1735090878433,1.06902487,698.18,696.2,1.0714771]
[1735090878733,0.26360713,698.17,696.22,0.28726551]
[1735090879132,1.06902487,698.18,696.22,0.28726551]
[1735090879328,0.26359402,698.17,696.22,0.28726551]
[1735090879528,0.26359402,698.16,696.22,0.28726551]
[1735090879734,0.26359402,698.15,696.22,0.28726551]
[1735090879932,0.26359402,698.14,696.22,0.28726551]
[1735090880131,0.26359402,698.13,696.22,0.28726551]
[1735090880331,0.26359402,698.12,696.22,0.28726551]
[1735090880536,0.26359402,698.11,696.22,0.28726551]
[1735090880731,0.26359402,698.1,696.22,0.28726551]
[1735090880932,0.26359402,698.09,696.22,0.28726551]
[1735090881130,0.26359402,698.08,696.22,0.28726551]
[1735090881333,0.26359402,698.07,696.22,0.28726551]
[1735090881536,0.26359402,698.06,696.22,0.28726551]
[1735090881734,0.26359402,698.05,696.22,0.28726551]
[1735090882030,0.28642625,698.26,696.22,0.28726551]
[1735090882235,0.26363738,698.25,696.22,0.28726551]
[1735090886037,1.06902487,698.19,696.22,0.28726551]
[1735090886238,0.26363098,698.18,696.22,0.28726551]
[1735090887341,0.26363098,698.17,696.22,0.28726551]
[1735090887538,0.26363098,698.16,696.22,0.28726551]
[1735090887739,0.26363098,698.15,696.22,0.28726551]
[1735090887940,1.06902487,698.21,696.22,0.28726551]
[1735090888136,0.28642625,698.26,696.22,0.28726551]
[1735090888137,1.06902487,698.19,696.22,0.28726551]
[1735090888339,0.26362644,698.18,696.22,0.28726551]
[1735090888943,1.06902487,698.15,696.22,0.28726551]
[1735090889145,0.26362644,698.14,696.22,0.28726551]
[1735090889941,1.33265131,698.14,696.22,0.28726551]
[1735090890146,0.26362644,698.13,696.22,0.28726551]
[1735090890747,0.26363962,698.12,696.22,0.28726551]
[1735090890940,1.06902487,698.14,696.22,0.28726551]
[1735090890941,0.26363962,698.11,696.22,0.28726551]
[1735090891146,1.06902487,698.14,696.22,0.28726551]
[1735090891147,0.26363962,698.1,696.22,0.28726551]
[1735090891445,1.06902487,698.0,696.31,1.0714771]
[1735090891642,0.26363962,697.99,696.33,0.28722013]
[1735090892245,0.26363962,697.98,696.33,0.28722013]
[1735090892445,0.26363962,697.97,696.33,0.28722013]
[1735090892644,0.26363962,697.96,696.33,0.28722013]
[1735090892945,0.26363962,697.95,696.33,0.28722013]
[1735090893147,0.26363962,697.94,696.33,0.28722013]
[1735090893343,1.06902487,698.06,696.33,0.28722013]
[1735090893544,0.26363875,698.05,696.33,0.28722013]
[1735090895143,0.26363875,698.04,696.33,0.28722013]
[1735090895347,0.26363875,698.03,696.33,0.28722013]
[1735090895548,0.26363875,698.02,696.33,0.28722013]
[1735090895742,0.26363875,698.01,696.33,0.28722013]
[1735090895943,0.28642625,698.26,696.33,0.28722013]
[1735090895944,0.26363875,698.0,696.33,0.28722013]
[1735090896249,0.26363137,697.99,696.33,0.28722013]
[1735090896547,0.26363137,697.98,696.33,0.28722013]
[1735090896746,0.26363137,697.97,696.33,0.28722013]
[1735090896944,0.26363137,697.96,696.33,1.35869723]
[1735090897146,0.28642625,698.26,696.33,1.35869723]
[1735090897147,1.06902487,698.06,696.33,1.35869723]
[1735090897347,0.26362184,698.05,696.33,1.35869723]
[1735090898151,0.26362184,698.05,696.38,1.0714771]
[1735090898852,1.06902487,698.01,696.38,1.0714771]
[1735090899146,0.26363802,698.0,696.38,1.0714771]
[1735090899651,1.33266289,698.0,696.4,0.28719126]
[1735090899845,0.26363802,697.99,696.4,0.28719126]
[1735090900551,1.33266289,697.99,696.4,0.28719126]
[1735090900748,0.26363802,697.98,696.4,0.28719126]
[1735090901656,0.26363802,697.97,696.4,0.28719126]
[1735090901856,0.26363802,697.96,696.4,0.28719126]
[1735090902058,0.26363802,697.99,696.4,0.28719126]
[1735090902254,0.26363802,697.98,696.4,0.28719126]
[1735090902455,0.26363802,697.97,696.4,0.28719126]
[1735090902657,0.26363802,697.96,696.43,1.0714771]
[1735090902858,0.26363802,697.96,696.45,0.28717065]
[1735090903454,1.06902487,697.94,696.45,0.28717065]
[1735090904255,1.06902487,698.06,696.45,0.28717065]
[1735090904460,0.26360936,698.05,696.45,0.28717065]
[1735090905556,1.06902487,698.1,696.45,0.28717065]
[1735090905760,0.26360253,698.09,696.45,0.28717065]
[1735090906464,1.06902487,698.1,696.45,0.28717065]
[1735090906763,1.06902487,698.12,696.45,0.28717065]
[1735090907965,1.06902487,698.24,696.45,0.28717065]
[1735090908264,0.28642625,698.26,696.45,0.28717065]
[1735090912263,0.26359277,698.25,696.45,0.28717065]
[1735090912768,1.06902487,698.24,696.45,0.28717065]
[1735090912966,0.26359335,698.23,696.45,0.28717065]
[1735090913765,1.06902487,698.22,696.45,0.28717065]
[1735090913965,0.26359335,698.21,696.45,0.28717065]
[1735090914468,1.06902487,698.18,696.45,0.28717065]
[1735090914668,0.26359335,698.17,696.45,0.28717065]